[Event "*** SCC Grand Prix: Titled Tuesday Blitz"]
[Site "Chess.com"]
[Date "2020.07.21"]
[Round "5"]
[White "EugeneRougon"]
[Black "RubensCezila"]
[Result "0-1"]
[WhiteElo "2710"]
[BlackElo "2574"]
[TimeControl "180+1"]
[EndTime "10:56:21 PDT"]
[Termination "RubensCezila won by resignation"]

1. e4 {[%clk 0:03:00.9]} 1... c6 {[%clk 0:02:58.8]} 2. d4 {[%clk 0:03:00.4]}
2... d5 {[%clk 0:02:59.3]} 3. Nc3 {[%clk 0:03:00.5]} 3... dxe4 {[%clk
0:02:59.2]} 4. Nxe4 {[%clk 0:03:01.4]} 4... Nf6 {[%clk 0:02:59.4]} 5. Nxf6+
{[%clk 0:03:01.2]} 5... exf6 {[%clk 0:03:00.3]} 6. c3 {[%clk 0:03:01.1]} 6...
Bd6 {[%clk 0:03:00.7]} 7. Bd3 {[%clk 0:03:01.5]} 7... O-O {[%clk 0:03:01.1]} 8.
Qc2 {[%clk 0:03:02]} 8... Re8+ {[%clk 0:03:01]} 9. Ne2 {[%clk 0:03:02.7]} 9...
h5 {[%clk 0:03:00.6]} 10. Be3 {[%clk 0:03:03.3]} 10... Nd7 {[%clk 0:03:00]} 11.
O-O-O {[%clk 0:03:02]} 11... Nf8 {[%clk 0:03:00.1]} 12. Kb1 {[%clk 0:02:54.4]}
12... Be6 {[%clk 0:02:57.9]} 13. c4 {[%clk 0:02:43.1]} 13... Rc8 {[%clk
0:02:57.3]} 14. h3 {[%clk 0:02:31.1]} 14... b5 {[%clk 0:02:49.2]} 15. d5 {[%clk
0:01:53.3]} 15... cxd5 {[%clk 0:02:30.8]} 16. c5 {[%clk 0:01:52.9]} 16... a6
{[%clk 0:02:05.2]} 17. g4 {[%clk 0:01:42.9]} 17... h4 {[%clk 0:02:03.9]} 18.
Rhg1 {[%clk 0:01:23.1]} 18... Nd7 {[%clk 0:01:48.6]} 19. g5 {[%clk 0:01:10.4]}
19... Nxc5 {[%clk 0:01:35.8]} 20. gxf6 {[%clk 0:00:55.5]} 20... Qxf6 {[%clk
0:01:35.3]} 21. Bd4 {[%clk 0:00:54.7]} 21... Be5 {[%clk 0:00:42.8]} 22. Bxc5
{[%clk 0:00:50.7]} 22... Rc7 {[%clk 0:00:26.3]} 23. f4 {[%clk 0:00:45.6]} 23...
Bxb2 {[%clk 0:00:22.8]} 24. Qxb2 {[%clk 0:00:40.6]} 24... Qxb2+ {[%clk
0:00:23.7]} 25. Kxb2 {[%clk 0:00:41.5]} 25... Rxc5 {[%clk 0:00:23.2]} 26. Nd4
{[%clk 0:00:31.5]} 26... Bxh3 {[%clk 0:00:23]} 27. Rde1 {[%clk 0:00:25.4]} 27...
Rxe1 {[%clk 0:00:19.8]} 28. Rxe1 {[%clk 0:00:25.3]} 28... Kf8 {[%clk 0:00:20.4]}
29. Rh1 {[%clk 0:00:24.7]} 29... Bd7 {[%clk 0:00:16.3]} 30. Rxh4 {[%clk
0:00:24.8]} 30... g6 {[%clk 0:00:16.5]} 31. Rh8+ {[%clk 0:00:21.5]} 31... Kg7
{[%clk 0:00:12.8]} 32. Rd8 {[%clk 0:00:21.3]} 32... Bg4 {[%clk 0:00:12.1]} 33.
Rd6 {[%clk 0:00:18.8]} 33... a5 {[%clk 0:00:11.6]} 34. Bxb5 {[%clk 0:00:18.7]}
34... f6 {[%clk 0:00:07.8]} 35. Bd7 {[%clk 0:00:17.3]} 35... Bxd7 {[%clk
0:00:05.1]} 36. Rxd7+ {[%clk 0:00:18.2]} 36... Kh6 {[%clk 0:00:05.8]} 37. Rd6
{[%clk 0:00:18.5]} 37... Rc4 {[%clk 0:00:05.7]} 38. Rxd5 {[%clk 0:00:17.7]}
38... g5 {[%clk 0:00:05.2]} 39. fxg5+ {[%clk 0:00:17.4]} 39... fxg5 {[%clk
0:00:06.1]} 40. Nf3 {[%clk 0:00:15.7]} 40... g4 {[%clk 0:00:04.7]} 41. Ne5
{[%clk 0:00:16.2]} 41... Re4 {[%clk 0:00:04.8]} 42. Nd3 {[%clk 0:00:11.5]} 42...
g3 {[%clk 0:00:04.8]} 43. Rd8 {[%clk 0:00:10.7]} 43... Kg5 {[%clk 0:00:04]} 44.
Rg8+ {[%clk 0:00:10.5]} 44... Kh4 {[%clk 0:00:04.5]} 45. Kc3 {[%clk 0:00:11.2]}
45... Re2 {[%clk 0:00:03.8]} 46. a4 {[%clk 0:00:11.1]} 46... Ra2 {[%clk
0:00:03]} 47. Nc5 {[%clk 0:00:11.3]} 47... g2 {[%clk 0:00:02.9]} 48. Kc4 {[%clk
0:00:11.6]} 48... Kh3 {[%clk 0:00:02.3]} 49. Kb5 {[%clk 0:00:10]} 49... Ra3
{[%clk 0:00:02.2]} 50. Ne4 {[%clk 0:00:09.5]} 50... Re3 {[%clk 0:00:01.8]} 51.
Rh8+ {[%clk 0:00:09.7]} 51... Kg4 {[%clk 0:00:01.7]} 52. Rf8 {[%clk 0:00:09.9]}
52... Rxe4 {[%clk 0:00:01.5]} 53. Rg8+ {[%clk 0:00:10.2]} 53... Kf3 {[%clk
0:00:01.6]} 54. Rf8+ {[%clk 0:00:09.4]} 54... Rf4 {[%clk 0:00:02]} 55. Rg8
{[%clk 0:00:08.9]} 55... Rg4 {[%clk 0:00:02.9]} 56. Rxg4 {[%clk 0:00:09.1]}
56... Kxg4 {[%clk 0:00:02.8]} 0-1

[Event "*** SCC Grand Prix: Titled Tuesday Blitz"]
[Site "Chess.com"]
[Date "2020.07.21"]
[Round "5"]
[White "jamalm2"]
[Black "Vandros57"]
[Result "0-1"]
[WhiteElo "1854"]
[BlackElo "2104"]
[TimeControl "180+1"]
[EndTime "10:56:24 PDT"]
[Termination "Vandros57 won on time"]

1. c4 {[%clk 0:03:00.2]} 1... e6 {[%clk 0:02:58.2]} 2. Nc3 {[%clk 0:02:57.4]}
2... d5 {[%clk 0:02:57.7]} 3. cxd5 {[%clk 0:02:54.7]} 3... exd5 {[%clk
0:02:56.8]} 4. d4 {[%clk 0:02:53.6]} 4... Nf6 {[%clk 0:02:55.7]} 5. Bf4 {[%clk
0:02:52.7]} 5... c6 {[%clk 0:02:54.9]} 6. e3 {[%clk 0:02:52]} 6... Bd6 {[%clk
0:02:54]} 7. Bxd6 {[%clk 0:02:49.7]} 7... Qxd6 {[%clk 0:02:53.4]} 8. Bd3 {[%clk
0:02:50.3]} 8... O-O {[%clk 0:02:52.5]} 9. Nf3 {[%clk 0:02:48]} 9... Bg4 {[%clk
0:02:50.1]} 10. h3 {[%clk 0:02:46]} 10... Bh5 {[%clk 0:02:49]} 11. O-O {[%clk
0:02:35.4]} 11... Nbd7 {[%clk 0:02:48.5]} 12. Rc1 {[%clk 0:02:31.6]} 12... Rfe8
{[%clk 0:02:46.7]} 13. Be2 {[%clk 0:02:16.1]} 13... a5 {[%clk 0:02:43.3]} 14.
Nh4 {[%clk 0:02:10]} 14... Bxe2 {[%clk 0:02:38.1]} 15. Qxe2 {[%clk 0:02:09.3]}
15... Ne4 {[%clk 0:02:30.5]} 16. Nxe4 {[%clk 0:02:02.8]} 16... dxe4 {[%clk
0:02:27.4]} 17. Nf5 {[%clk 0:02:00.3]} 17... Qd5 {[%clk 0:02:21.6]} 18. Qg4
{[%clk 0:01:47.2]} 18... g6 {[%clk 0:02:19.5]} 19. Ng3 {[%clk 0:01:41.6]} 19...
f5 {[%clk 0:02:03.6]} 20. Qg5 {[%clk 0:01:30.2]} 20... Kh8 {[%clk 0:01:33.8]}
21. b3 {[%clk 0:01:27]} 21... a4 {[%clk 0:01:28.7]} 22. Rb1 {[%clk 0:01:21.9]}
22... axb3 {[%clk 0:01:26.6]} 23. axb3 {[%clk 0:01:21]} 23... Ra3 {[%clk
0:01:20]} 24. b4 {[%clk 0:01:19.5]} 24... Ra4 {[%clk 0:01:18.8]} 25. Ne2 {[%clk
0:01:13.8]} 25... Qc4 {[%clk 0:01:14]} 26. Nf4 {[%clk 0:01:12.6]} 26... Qf7
{[%clk 0:00:56.1]} 27. h4 {[%clk 0:01:03.5]} 27... Nf8 {[%clk 0:00:45.6]} 28. b5
{[%clk 0:01:00.1]} 28... Kg7 {[%clk 0:00:40.3]} 29. bxc6 {[%clk 0:00:57.1]}
29... bxc6 {[%clk 0:00:38.7]} 30. Nh5+ {[%clk 0:00:46.5]} 30... Kh8 {[%clk
0:00:35.7]} 31. Nf6 {[%clk 0:00:44.2]} 31... Re6 {[%clk 0:00:32.2]} 32. h5
{[%clk 0:00:24.8]} 32... Qxf6 {[%clk 0:00:30.2]} 33. Qh6 {[%clk 0:00:23.2]}
33... Qg7 {[%clk 0:00:28.1]} 34. Qf4 {[%clk 0:00:21.8]} 34... Ra7 {[%clk
0:00:23.2]} 35. Rb8 {[%clk 0:00:19.8]} 35... Kg8 {[%clk 0:00:18.3]} 36. h6
{[%clk 0:00:18.9]} 36... Qc7 {[%clk 0:00:16.6]} 37. Qxc7 {[%clk 0:00:14.9]}
37... Rxc7 {[%clk 0:00:16.1]} 38. Ra1 {[%clk 0:00:14.7]} 38... Kf7 {[%clk
0:00:14.5]} 39. Raa8 {[%clk 0:00:13.6]} 39... Nd7 {[%clk 0:00:12.5]} 40. Rh8
{[%clk 0:00:12.7]} 40... Nf6 {[%clk 0:00:10.6]} 41. Rhf8+ {[%clk 0:00:08.9]}
41... Ke7 {[%clk 0:00:10.3]} 42. Rh8 {[%clk 0:00:06.5]} 42... c5 {[%clk
0:00:09.7]} 43. dxc5 {[%clk 0:00:05]} 43... Rxc5 {[%clk 0:00:09.1]} 44. Ra7+
{[%clk 0:00:04.9]} 44... Kd6 {[%clk 0:00:08.8]} 0-1

[Event "*** SCC Grand Prix: Titled Tuesday Blitz"]
[Site "Chess.com"]
[Date "2020.07.21"]
[Round "5"]
[White "NikolaGry"]
[Black "Alberquintin"]
[Result "1-0"]
[WhiteElo "2639"]
[BlackElo "2479"]
[TimeControl "180+1"]
[EndTime "10:56:25 PDT"]
[Termination "NikolaGry won on time"]

1. e4 {[%clk 0:03:00.9]} 1... e5 {[%clk 0:02:58.1]} 2. Nf3 {[%clk 0:03:00.2]}
2... Nc6 {[%clk 0:02:57.8]} 3. Bb5 {[%clk 0:03:00.2]} 3... a6 {[%clk 0:02:56.8]}
4. Bxc6 {[%clk 0:02:59.6]} 4... dxc6 {[%clk 0:02:56.2]} 5. d4 {[%clk 0:02:59.2]}
5... exd4 {[%clk 0:02:54.6]} 6. Qxd4 {[%clk 0:02:59.1]} 6... Qxd4 {[%clk
0:02:54.3]} 7. Nxd4 {[%clk 0:02:59.1]} 7... Bd7 {[%clk 0:02:54.5]} 8. Nc3 {[%clk
0:02:58.4]} 8... O-O-O {[%clk 0:02:54.2]} 9. Be3 {[%clk 0:02:58.3]} 9... g6
{[%clk 0:02:52.7]} 10. O-O-O {[%clk 0:02:55.6]} 10... Bg7 {[%clk 0:02:52.6]} 11.
f3 {[%clk 0:02:52.2]} 11... Ne7 {[%clk 0:02:50.8]} 12. Rd2 {[%clk 0:02:45.3]}
12... c5 {[%clk 0:02:49.2]} 13. Nde2 {[%clk 0:02:42.5]} 13... b6 {[%clk
0:02:47.2]} 14. Rhd1 {[%clk 0:02:34.9]} 14... Bc6 {[%clk 0:02:27.3]} 15. Bg5
{[%clk 0:02:19.2]} 15... f6 {[%clk 0:02:25.5]} 16. Bf4 {[%clk 0:02:12.5]} 16...
Rxd2 {[%clk 0:02:24.9]} 17. Rxd2 {[%clk 0:02:11.4]} 17... Rd8 {[%clk 0:02:24]}
18. h4 {[%clk 0:02:07]} 18... f5 {[%clk 0:02:18.6]} 19. Bg5 {[%clk 0:01:46.5]}
19... Rxd2 {[%clk 0:02:17.2]} 20. Kxd2 {[%clk 0:01:45.8]} 20... Kd7 {[%clk
0:02:16.9]} 21. Bxe7 {[%clk 0:01:26.2]} 21... Kxe7 {[%clk 0:02:16.2]} 22. exf5
{[%clk 0:01:26.2]} 22... gxf5 {[%clk 0:02:15.8]} 23. Ke3 {[%clk 0:01:21.8]}
23... b5 {[%clk 0:02:04]} 24. g4 {[%clk 0:01:16.2]} 24... b4 {[%clk 0:01:30.3]}
25. Nd1 {[%clk 0:01:13.7]} 25... Bd5 {[%clk 0:01:20.9]} 26. b3 {[%clk
0:01:08.5]} 26... fxg4 {[%clk 0:01:17.5]} 27. fxg4 {[%clk 0:01:07.8]} 27... c4
{[%clk 0:01:13.3]} 28. Kf4 {[%clk 0:00:59.1]} 28... cxb3 {[%clk 0:01:06.4]} 29.
axb3 {[%clk 0:00:58.1]} 29... Kd6 {[%clk 0:00:58.5]} 30. Ne3 {[%clk 0:00:52.6]}
30... Be5+ {[%clk 0:00:51.6]} 31. Kg5 {[%clk 0:00:50.1]} 31... Bf3 {[%clk
0:00:43]} 32. Nf5+ {[%clk 0:00:42.5]} 32... Kd5 {[%clk 0:00:37.3]} 33. Nf4+
{[%clk 0:00:41.9]} 33... Ke4 {[%clk 0:00:32.8]} 34. Nd3 {[%clk 0:00:41.8]} 34...
Bc3 {[%clk 0:00:25.1]} 35. Nc5+ {[%clk 0:00:37.2]} 35... Ke5 {[%clk 0:00:22.1]}
36. Nxa6 {[%clk 0:00:35.2]} 36... Bd2+ {[%clk 0:00:21.9]} 37. Kh5 {[%clk
0:00:34.3]} 37... Kf4 {[%clk 0:00:20.4]} 38. Nh6 {[%clk 0:00:33.7]} 38... Be4
{[%clk 0:00:18.3]} 39. Nf5 {[%clk 0:00:29.7]} 39... Bxc2 {[%clk 0:00:18]} 40.
Nxc7 {[%clk 0:00:27.3]} 40... Bxb3 {[%clk 0:00:16.7]} 41. Nd6 {[%clk 0:00:22.4]}
41... Bf7+ {[%clk 0:00:15.1]} 42. Nxf7 {[%clk 0:00:22.2]} 42... b3 {[%clk
0:00:14.5]} 43. Nb5 {[%clk 0:00:22.3]} 43... Bb4 {[%clk 0:00:13.3]} 44. Nc7
{[%clk 0:00:13.9]} 44... b2 {[%clk 0:00:13.2]} 45. Nd5+ {[%clk 0:00:13.6]} 45...
Ke4 {[%clk 0:00:11.2]} 46. Nxb4 {[%clk 0:00:13.4]} 46... b1=Q {[%clk 0:00:10.7]}
47. Nc6 {[%clk 0:00:10.9]} 47... Kd5 {[%clk 0:00:07.8]} 48. Nce5 {[%clk
0:00:10.7]} 48... Ke6 {[%clk 0:00:07]} 49. g5 {[%clk 0:00:10.1]} 49... Kf5
{[%clk 0:00:04.9]} 50. Kh6 {[%clk 0:00:09.7]} 50... Ke6 {[%clk 0:00:05.1]} 51.
h5 {[%clk 0:00:09.5]} 51... Qf5 {[%clk 0:00:04.1]} 52. g6 {[%clk 0:00:09.2]}
52... hxg6 {[%clk 0:00:04.3]} 53. hxg6 {[%clk 0:00:09.2]} 53... Kf6 {[%clk
0:00:04.4]} 54. Kh7 {[%clk 0:00:06.5]} 54... Qh5+ {[%clk 0:00:03.4]} 55. Nh6
{[%clk 0:00:02.3]} 1-0

[Event "*** SCC Grand Prix: Titled Tuesday Blitz"]
[Site "Chess.com"]
[Date "2020.07.21"]
[Round "5"]
[White "Zmof"]
[Black "MusicCityMaster"]
[Result "0-1"]
[WhiteElo "2175"]
[BlackElo "2449"]
[TimeControl "180+1"]
[EndTime "10:56:26 PDT"]
[Termination "MusicCityMaster won by resignation"]

1. e4 {[%clk 0:03:00.9]} 1... c5 {[%clk 0:02:59.6]} 2. Nf3 {[%clk 0:03:00.6]}
2... d6 {[%clk 0:02:59.6]} 3. Bb5+ {[%clk 0:02:59.9]} 3... Nd7 {[%clk 0:02:59]}
4. Ba4 {[%clk 0:02:59.5]} 4... Nf6 {[%clk 0:02:53.4]} 5. O-O {[%clk 0:02:58]}
5... e6 {[%clk 0:02:50.9]} 6. Re1 {[%clk 0:02:50.5]} 6... Be7 {[%clk 0:02:49.7]}
7. c3 {[%clk 0:02:49.5]} 7... O-O {[%clk 0:02:49.1]} 8. d4 {[%clk 0:02:49.7]}
8... cxd4 {[%clk 0:02:42.9]} 9. cxd4 {[%clk 0:02:48.8]} 9... a6 {[%clk
0:02:42.3]} 10. Nc3 {[%clk 0:02:38.4]} 10... b5 {[%clk 0:02:41.9]} 11. Bc2
{[%clk 0:02:37.8]} 11... Bb7 {[%clk 0:02:41.4]} 12. e5 {[%clk 0:02:33.6]} 12...
dxe5 {[%clk 0:02:32.4]} 13. dxe5 {[%clk 0:02:32.3]} 13... Nd5 {[%clk 0:02:32.6]}
14. Nxd5 {[%clk 0:02:23.2]} 14... Bxd5 {[%clk 0:02:29.4]} 15. Bb3 {[%clk
0:01:48.6]} 15... Nb6 {[%clk 0:02:22.7]} 16. Be3 {[%clk 0:01:43.3]} 16... Nc4
{[%clk 0:02:10.8]} 17. Bxc4 {[%clk 0:01:32.4]} 17... Bxc4 {[%clk 0:02:06.8]} 18.
Qxd8 {[%clk 0:01:16.3]} 18... Rfxd8 {[%clk 0:02:05.6]} 19. Bg5 {[%clk 0:01:10]}
19... Bxg5 {[%clk 0:01:25.2]} 20. Nxg5 {[%clk 0:01:09.5]} 20... Rd2 {[%clk
0:01:25.8]} 21. b3 {[%clk 0:01:09.5]} 21... Bd5 {[%clk 0:01:25.9]} 22. Ne4
{[%clk 0:01:03.9]} 22... Bxe4 {[%clk 0:01:23.8]} 23. Rxe4 {[%clk 0:01:04]} 23...
Rc8 {[%clk 0:01:24.4]} 24. a4 {[%clk 0:00:52.9]} 24... g6 {[%clk 0:01:07.7]} 25.
axb5 {[%clk 0:00:52]} 25... axb5 {[%clk 0:01:07.9]} 26. g3 {[%clk 0:00:44.6]}
26... Rcc2 {[%clk 0:01:06.3]} 27. Rf4 {[%clk 0:00:44.5]} 27... Rc7 {[%clk
0:00:58.8]} 28. Ra5 {[%clk 0:00:35.1]} 28... Rd5 {[%clk 0:00:58.4]} 29. Rb4
{[%clk 0:00:34.8]} 29... Rxe5 {[%clk 0:00:53.7]} 30. Raxb5 {[%clk 0:00:33]}
30... Re2 {[%clk 0:00:54.2]} 31. Rb8+ {[%clk 0:00:28.3]} 31... Kg7 {[%clk
0:00:53.8]} 32. R8b7 {[%clk 0:00:29]} 32... Rc1+ {[%clk 0:00:51.2]} 33. Kg2
{[%clk 0:00:28.8]} 33... g5 {[%clk 0:00:48.9]} 34. Rc4 {[%clk 0:00:22.4]} 34...
Rxc4 {[%clk 0:00:43.2]} 35. bxc4 {[%clk 0:00:21.7]} 35... Rc2 {[%clk 0:00:43.9]}
36. Rc7 {[%clk 0:00:20.5]} 36... Kf6 {[%clk 0:00:43.6]} 37. Kf3 {[%clk
0:00:20.8]} 37... h5 {[%clk 0:00:43.2]} 38. h3 {[%clk 0:00:20.7]} 38... Rc3+
{[%clk 0:00:41.6]} 39. Ke2 {[%clk 0:00:20.6]} 39... h4 {[%clk 0:00:41.6]} 40.
gxh4 {[%clk 0:00:18.8]} 40... gxh4 {[%clk 0:00:41.4]} 41. f3 {[%clk 0:00:17.7]}
41... Rc2+ {[%clk 0:00:41.9]} 42. Ke3 {[%clk 0:00:18]} 42... Rh2 {[%clk
0:00:42.4]} 43. c5 {[%clk 0:00:18.4]} 43... Rxh3 {[%clk 0:00:42.5]} 44. Rd7
{[%clk 0:00:16.4]} 44... Rh1 {[%clk 0:00:42]} 45. c6 {[%clk 0:00:14]} 45... Rc1
{[%clk 0:00:42]} 46. c7 {[%clk 0:00:12.2]} 46... h3 {[%clk 0:00:42.4]} 47. Rd8
{[%clk 0:00:08.3]} 47... Rxc7 {[%clk 0:00:37.7]} 48. Rh8 {[%clk 0:00:09]} 48...
Rc3+ {[%clk 0:00:30]} 49. Kf4 {[%clk 0:00:09.3]} 49... e5+ {[%clk 0:00:28.6]}
50. Kg3 {[%clk 0:00:09.6]} 50... e4 {[%clk 0:00:27.6]} 51. Kf4 {[%clk
0:00:03.6]} 51... Rxf3+ {[%clk 0:00:19.9]} 52. Kxe4 {[%clk 0:00:03.7]} 52... Ra3
{[%clk 0:00:19.4]} 53. Kf4 {[%clk 0:00:03.9]} 53... Ra4+ {[%clk 0:00:18.7]} 54.
Kg3 {[%clk 0:00:04]} 54... Ra3+ {[%clk 0:00:17.6]} 55. Kg4 {[%clk 0:00:04.3]}
55... Kg6 {[%clk 0:00:17]} 56. Rg8+ {[%clk 0:00:02]} 56... Kf6 {[%clk
0:00:16.5]} 57. Rh8 {[%clk 0:00:02.2]} 57... Ke5 {[%clk 0:00:16.7]} 58. Rxh3
{[%clk 0:00:01.7]} 58... Rxh3 {[%clk 0:00:16]} 59. Kxh3 {[%clk 0:00:02.4]} 59...
Kf5 {[%clk 0:00:16.4]} 60. Kg3 {[%clk 0:00:02.5]} 60... Ke4 {[%clk 0:00:16.8]}
61. Kg4 {[%clk 0:00:02.6]} 61... f5+ {[%clk 0:00:16.2]} 62. Kg3 {[%clk 0:00:03]}
62... Ke3 {[%clk 0:00:16.7]} 63. Kg2 {[%clk 0:00:03.4]} 63... f4 {[%clk
0:00:15.9]} 64. Kf1 {[%clk 0:00:02.4]} 64... Kf3 {[%clk 0:00:16]} 65. Ke1 {[%clk
0:00:03]} 65... Kg2 {[%clk 0:00:15.5]} 66. Ke2 {[%clk 0:00:02.6]} 66... f3+
{[%clk 0:00:16]} 0-1

[Event "*** SCC Grand Prix: Titled Tuesday Blitz"]
[Site "Chess.com"]
[Date "2020.07.21"]
[Round "5"]
[White "frederiksvane"]
[Black "Fandorine"]
[Result "1/2-1/2"]
[WhiteElo "2680"]
[BlackElo "2924"]
[TimeControl "180+1"]
[EndTime "10:56:27 PDT"]
[Termination "Game drawn - insufficient material"]

1. e4 {[%clk 0:03:00.9]} 1... e5 {[%clk 0:02:59.1]} 2. Nf3 {[%clk 0:03:01.1]}
2... Nc6 {[%clk 0:02:59.1]} 3. Bb5 {[%clk 0:03:01.8]} 3... a6 {[%clk 0:02:59.4]}
4. Ba4 {[%clk 0:03:02.3]} 4... Nf6 {[%clk 0:02:59.9]} 5. O-O {[%clk 0:03:01.8]}
5... Be7 {[%clk 0:02:58.7]} 6. d3 {[%clk 0:03:01.5]} 6... d6 {[%clk 0:02:58.9]}
7. c3 {[%clk 0:03:00.1]} 7... O-O {[%clk 0:02:58.7]} 8. Re1 {[%clk 0:02:59.5]}
8... Re8 {[%clk 0:02:59]} 9. Nbd2 {[%clk 0:02:59.8]} 9... Bf8 {[%clk 0:02:59.4]}
10. Nf1 {[%clk 0:03:00.1]} 10... h6 {[%clk 0:03:00]} 11. Ng3 {[%clk 0:03:00.3]}
11... b5 {[%clk 0:03:00.5]} 12. Bc2 {[%clk 0:02:54.5]} 12... d5 {[%clk
0:02:57.3]} 13. h3 {[%clk 0:02:53]} 13... dxe4 {[%clk 0:02:46.3]} 14. Nxe4
{[%clk 0:02:44.5]} 14... Bb7 {[%clk 0:02:28]} 15. Be3 {[%clk 0:02:37]} 15...
Nxe4 {[%clk 0:02:16.9]} 16. dxe4 {[%clk 0:02:37.9]} 16... Qf6 {[%clk 0:02:12.4]}
17. Qe2 {[%clk 0:02:33.1]} 17... Rad8 {[%clk 0:02:10.3]} 18. b4 {[%clk
0:02:27.3]} 18... Ne7 {[%clk 0:02:04.9]} 19. a4 {[%clk 0:02:17.3]} 19... c6
{[%clk 0:02:05]} 20. Bb3 {[%clk 0:02:11.9]} 20... Ng6 {[%clk 0:01:58.2]} 21. g3
{[%clk 0:01:54.4]} 21... Bc8 {[%clk 0:01:55.8]} 22. Kg2 {[%clk 0:01:53.4]} 22...
Bb7 {[%clk 0:01:31.1]} 23. Red1 {[%clk 0:01:44]} 23... Rxd1 {[%clk 0:01:07.9]}
24. Rxd1 {[%clk 0:01:42.3]} 24... Rd8 {[%clk 0:01:07.2]} 25. Rxd8 {[%clk
0:01:27.3]} 25... Qxd8 {[%clk 0:01:08.1]} 26. Qd2 {[%clk 0:01:27.9]} 26... Qxd2
{[%clk 0:00:57.9]} 27. Nxd2 {[%clk 0:01:28.8]} 27... Bd6 {[%clk 0:00:45.5]} 28.
f3 {[%clk 0:01:23.7]} 28... Nf8 {[%clk 0:00:44.9]} 29. axb5 {[%clk 0:00:57.6]}
29... cxb5 {[%clk 0:00:32]} 30. Kf2 {[%clk 0:00:57.8]} 30... Nd7 {[%clk
0:00:30.2]} 31. Ba2 {[%clk 0:00:51.9]} 31... Kf8 {[%clk 0:00:29.5]} 32. Nb3
{[%clk 0:00:51.5]} 32... h5 {[%clk 0:00:21.9]} 33. g4 {[%clk 0:00:48.8]} 33...
h4 {[%clk 0:00:20.3]} 34. Na5 {[%clk 0:00:47.2]} 34... Ba8 {[%clk 0:00:20.4]}
35. Ke2 {[%clk 0:00:43.6]} 35... f6 {[%clk 0:00:18.1]} 36. Kd3 {[%clk
0:00:34.9]} 36... Ke7 {[%clk 0:00:15.1]} 37. Bd5 {[%clk 0:00:31.7]} 37... Bxd5
{[%clk 0:00:13]} 38. exd5 {[%clk 0:00:32.6]} 38... Bc7 {[%clk 0:00:08.4]} 39.
Nb7 {[%clk 0:00:20.4]} 39... Bb6 {[%clk 0:00:04.3]} 40. Bc5+ {[%clk 0:00:16.3]}
40... Ke8 {[%clk 0:00:04.4]} 41. Nd6+ {[%clk 0:00:12.2]} 41... Kd8 {[%clk
0:00:04.6]} 42. Ke4 {[%clk 0:00:12.4]} 42... g6 {[%clk 0:00:04.5]} 43. Bxb6+
{[%clk 0:00:06.7]} 43... Nxb6 {[%clk 0:00:04.9]} 44. g5 {[%clk 0:00:07.2]} 44...
Kd7 {[%clk 0:00:04.6]} 45. Nb7 {[%clk 0:00:04.4]} 45... fxg5 {[%clk 0:00:04.8]}
46. Kxe5 {[%clk 0:00:04.8]} 46... Nc4+ {[%clk 0:00:04]} 47. Kf6 {[%clk
0:00:05.3]} 47... Nd2 {[%clk 0:00:03.8]} 48. Kxg5 {[%clk 0:00:04.3]} 48... Nxf3+
{[%clk 0:00:04.2]} 49. Kxg6 {[%clk 0:00:04.7]} 49... Ng1 {[%clk 0:00:04]} 50.
Kg5 {[%clk 0:00:04.4]} 50... Nxh3+ {[%clk 0:00:04.2]} 51. Kxh4 {[%clk
0:00:04.9]} 51... Nf4 {[%clk 0:00:04.7]} 52. Nc5+ {[%clk 0:00:03.5]} 52... Kd6
{[%clk 0:00:05.2]} 53. Nxa6 {[%clk 0:00:03.9]} 53... Nxd5 {[%clk 0:00:05.8]} 54.
Kg4 {[%clk 0:00:04.5]} 54... Nxc3 {[%clk 0:00:04.8]} 55. Kf4 {[%clk 0:00:04.8]}
55... Na4 {[%clk 0:00:04.9]} 56. Ke3 {[%clk 0:00:04.7]} 56... Kc6 {[%clk
0:00:04.9]} 57. Kd3 {[%clk 0:00:04.9]} 57... Kb6 {[%clk 0:00:05.2]} 58. Nc5
{[%clk 0:00:05.5]} 58... Nxc5+ {[%clk 0:00:05.6]} 59. bxc5+ {[%clk 0:00:06.4]}
59... Kc6 {[%clk 0:00:06.5]} 60. Kd4 {[%clk 0:00:06.5]} 60... b4 {[%clk
0:00:06.9]} 61. Kc4 {[%clk 0:00:06.6]} 61... b3 {[%clk 0:00:07.8]} 62. Kxb3
{[%clk 0:00:07.1]} 62... Kxc5 {[%clk 0:00:08.7]} 1/2-1/2